bitfinex/quotes_ETHUSD_20240828
["timestamp","ask_amount","ask_price","bid_price","bid_amount"]
[1724838168123,3.43070569,2488.1,2487.7,4.13268006]
[1724838168521,3.43070569,2488.1,2487.7,0.11295006]
[1724838169844,4.01929,2488.0,2487.7,0.11295006]
[1724838171028,4.01929,2488.0,2487.5,4.02008]
[1724838171354,4.57911811,2488.0,2487.5,4.02008]
[1724838171658,0.55982811,2488.0,2487.6,0.11242076]
[1724838171819,2.3845,2487.9,2487.6,0.11242076]
[1724838172018,8.73571481,2487.8,2487.2,13.29508]
[1724838172218,8.62904527,2487.8,2487.7,0.11242076]
[1724838172441,8.62904527,2487.8,2487.3,3.0]
[1724838172631,8.62904527,2487.8,2487.7,0.11242076]
[1724838172831,4.01978,2487.7,2487.3,3.0]
[1724838173030,7.09913453,2487.7,2487.3,3.0]
[1724838174618,3.07935453,2487.7,2487.3,7.02042]
[1724838174831,4.01979,2487.7,2487.3,7.02042]
[1724838178786,0.58969527,2487.8,2487.2,3.0]
[1724838179096,4.02034,2487.4,2487.2,2.95]
[1724838180181,6.45041,2487.5,2487.2,2.95]
[1724838180383,4.02039,2487.4,2487.2,2.95]
[1724838182553,4.0201,2487.5,2487.2,2.95]
[1724838183475,7.30946662,2487.5,2487.2,2.95]
[1724838184001,3.28936662,2487.5,2487.2,2.95]
[1724838184793,19.78,2487.6,2487.2,9.24597]
[1724838185094,19.78,2487.6,2487.4,4.02025]
[1724838185290,19.78,2487.6,2487.3,0.11261221]
[1724838185291,19.78,2487.6,2487.3,4.13289221]
[1724838185503,19.78,2487.6,2487.3,8.0406]
[1724838185797,19.78,2487.6,2487.4,0.11261221]
[1724838187785,19.78,2487.6,2487.4,4.13285221]
[1724838189007,10.83939848,2487.8,2487.4,4.13285221]
[1724838193188,6.81962848,2487.8,2487.4,4.13285221]
[1724838194116,10.83927848,2487.8,2487.4,0.11261221]
[1724838194412,7.31308985,2487.7,2487.4,0.11261221]
[1724838194670,7.31308985,2487.7,2487.2,6.9705]
[1724838194824,7.31308985,2487.7,2487.5,0.11273607]
[1724838195120,7.31308985,2487.7,2487.2,2.95]
[1724838195121,4.02015,2487.5,2487.2,2.95]
[1724838198731,4.02027,2487.4,2487.2,2.95]
[1724838199933,4.02015,2487.5,2487.2,2.95]
[1724838200115,4.02015,2487.5,2487.3,0.11283744]
[1724838200116,8.04037,2487.5,2487.3,0.11283744]
[1724838200494,8.04037,2487.5,2487.2,2.95]
[1724838200690,8.04037,2487.5,2487.4,0.11284871]
[1724838200926,4.02026,2487.4,2487.2,2.95]
[1724838201630,4.02042,2487.3,2487.2,2.95]
[1724838202498,8.04084,2487.3,2487.2,2.95]
[1724838202698,9.60839563,2487.3,2487.2,2.95]
[1724838203402,38.68731563,2487.3,2487.2,2.95]
[1724838203605,38.68557407,2487.3,2487.2,2.95]
[1724838204037,34.66515407,2487.3,2487.2,2.95]
[1724838204194,31.66515407,2487.3,2487.2,2.95]
[1724838211251,27.64473407,2487.3,2487.2,2.95]
[1724838211462,29.32407484,2487.3,2487.2,2.95]
[1724838211641,33.34449484,2487.3,2487.2,2.95]
[1724838212141,33.34449484,2487.3,2487.2,3.05988851]
[1724838212516,13.56449484,2487.3,2487.2,3.05988851]
[1724838213049,13.56449484,2487.3,2487.2,2.95]
[1724838213482,13.56449484,2487.3,2487.2,3.05988851]
[1724838213682,13.56449484,2487.3,2487.2,2.95]
[1724838213855,17.58491484,2487.3,2487.2,2.95]
[1724838214468,13.56449484,2487.3,2487.2,2.95]
[1724838215259,17.58491484,2487.3,2487.2,2.95]
[1724838215845,13.56449484,2487.3,2487.2,2.95]
[1724838217219,37.36491484,2487.3,2487.2,2.95]
[1724838218389,33.34449484,2487.3,2487.2,2.95]
[1724838219797,33.34449484,2487.3,2487.2,3.06067722]
[1724838220382,4.01867844,2487.3,2487.2,3.06067722]
[1724838220587,4.01867844,2487.3,2487.2,2.95]
[1724838220758,4.01867844,2487.3,2487.2,3.06067722]
[1724838225027,8.03909844,2487.3,2487.2,3.06067722]
[1724838225322,10.29709844,2487.3,2487.2,3.06067722]
[1724838225528,13.47274236,2487.3,2487.2,3.06067722]
[1724838225928,13.47274236,2487.3,2487.2,2.95]
[1724838226429,17.49316236,2487.3,2487.2,2.95]
[1724838226586,13.47274236,2487.3,2487.2,2.95]
[1724838226988,4.01867844,2487.3,2487.2,2.95]
[1724838227335,5.69801921,2487.3,2487.2,2.95]
[1724838227632,5.69801921,2487.3,2487.2,3.06067722]
[1724838227792,9.71843921,2487.3,2487.2,3.06067722]
[1724838228795,9.71843921,2487.3,2487.2,2.95]
[1724838229005,13.07029413,2487.3,2487.2,2.95]
[1724838229627,15.46229413,2487.3,2487.2,2.95]
[1724838230499,35.24229413,2487.3,2487.2,2.95]
[1724838231036,39.26271413,2487.3,2487.2,2.95]
[1724838231896,46.37063413,2487.3,2487.2,2.95]
[1724838232096,4.02187,2486.4,2486.3,0.6297762]
[1724838232339,4.02204,2486.3,2486.2,2.4341]
[1724838233341,4.02221,2486.2,2485.9,2.3216]
[1724838234784,4.02187,2486.4,2485.9,2.3216]
[1724838235881,4.02205,2486.3,2485.9,2.3216]
[1724838236864,4.02187,2486.4,2485.9,6.34426]
[1724838237067,4.02187,2486.4,2485.9,8.02360077]
[1724838237257,4.02187,2486.4,2485.9,8.02354077]
[1724838237587,4.02172,2486.5,2486.0,4.0225]
[1724838239071,4.02172,2486.5,2486.1,2.4128]
[1724838240571,25.48101077,2486.6,2486.1,2.4128]
[1724838240776,4.02187,2486.4,2486.1,2.4128]
[1724838241785,23.80166,2486.6,2486.1,6.43516]
[1724838242106,19.78,2486.6,2486.3,4.02203]
[1724838242407,1.67934077,2486.7,2486.3,4.02203]
[1724838242784,5.70082077,2486.7,2486.2,4.02219]
[1724838242989,4.02172,2486.5,2486.1,6.43506]
[1724838243880,4.02207,2486.3,2485.9,2.4403]
[1724838244109,4.02207,2486.3,2485.9,6.46296]
[1724838244806,4.02207,2486.3,2486.0,0.11135349]
[1724838246485,4.02236,2486.1,2486.0,0.11135349]
[1724838246991,4.02236,2486.1,2485.7,6.27789]
[1724838247194,4.02236,2486.1,2485.8,0.11135349]
[1724838247391,1.67934077,2486.3,2485.7,6.27789]
[1724838247392,4.02234,2486.2,2485.7,6.27789]
[1724838247733,4.02234,2486.2,2485.8,0.11135349]
[1724838248026,4.02234,2486.2,2485.7,6.27782]
[1724838248224,4.02234,2486.2,2485.8,0.11135349]
[1724838248409,4.02234,2486.2,2485.8,4.02277]
[1724838248610,4.02204,2486.3,2485.9,0.11135349]
[1724838248924,23.80198,2486.4,2485.9,4.13392349]
[1724838249231,23.80198,2486.4,2486.0,2.4258]
[1724838249584,23.80198,2486.4,2486.1,0.11135349]
[1724838250226,23.80196,2486.4,2486.1,0.11135349]
[1724838250520,2.89226585,2486.3,2486.1,0.11135349]
[1724838250726,4.02207,2486.3,2486.1,0.11135349]
[1724838253034,28.92244852,2486.5,2486.1,0.11135349]
[1724838253191,24.33059244,2486.5,2486.2,4.0221]
[1724838253386,4.0215,2486.7,2486.3,0.11153386]
[1724838253592,8.04298,2486.7,2486.3,0.11153386]
[1724838254092,5.70121077,2486.4,2486.3,0.11153386]
[1724838254436,4.02204,2486.3,2485.8,10.31799]
[1724838254586,4.02204,2486.3,2485.8,6.29524]
[1724838254790,4.02204,2486.3,2485.9,0.11140986]
[1724838255222,4.02156,2486.6,2486.1,4.02227]
[1724838255422,4.02156,2486.6,2486.0,2.57154077]
[1724838255721,4.02156,2486.6,2486.1,0.11147749]
[1724838256471,4.02156,2486.6,2486.2,4.02213]
[1724838256961,26.62059244,2486.9,2486.3,0.19191825]
[1724838257127,23.80124,2486.8,2486.4,6.5129]
[1724838257534,23.80124,2486.8,2486.5,0.11147749]
[1724838257941,25.48058077,2486.8,2486.5,0.11147749]
[1724838258144,4.02155,2486.6,2486.5,0.11147749]
[1724838258327,9.05324385,2486.6,2486.5,0.11147749]
[1724838258544,4.02172,2486.5,2486.0,6.43209]
[1724838258760,4.02172,2486.5,2486.0,10.53497049]
[1724838258969,4.02172,2486.5,2486.1,4.02235]
[1724838259964,4.02172,2486.5,2486.2,0.11147749]
[1724838261487,4.0214,2486.7,2486.2,0.11147749]
[1724838261774,4.0214,2486.7,2486.2,4.13359749]
[1724838261982,23.80128,2486.8,2486.2,4.13358749]
[1724838262286,23.80128,2486.8,2486.3,6.4102]
[1724838262941,23.80128,2486.8,2486.4,0.11147749]
[1724838263137,10.86177244,2486.9,2486.4,4.13333749]
[1724838263138,19.78,2486.7,2486.4,4.13333749]
[1724838263872,19.78,2486.7,2486.4,0.11147749]
[1724838264941,23.80144,2486.7,2486.4,0.11147749]
[1724838265175,4.02157,2486.6,2486.4,0.11147749]
[1724838265441,4.02157,2486.6,2486.1,6.50686]
[1724838265442,5.70091077,2486.6,2486.1,6.50686]
[1724838265640,4.02171,2486.5,2486.2,0.11147749]
[1724838266994,4.02171,2486.5,2486.0,4.02252]
[1724838267197,4.02171,2486.5,2486.3,0.11121823]
[1724838267383,4.02171,2486.5,2486.0,4.02252]
[1724838267585,4.02188,2486.4,2486.0,4.02252]
[1724838267916,4.02188,2486.4,2486.1,0.11104915]
[1724838268595,4.02173,2486.5,2486.1,0.11104915]
[1724838270472,23.80132,2486.8,2486.3,2.32]
[1724838270698,27.82267,2486.8,2486.4,0.11108296]
[1724838270906,4.02142,2486.7,2486.4,0.11108296]
[1724838272203,4.02142,2486.7,2486.2,4.10253543]
[1724838272392,4.02142,2486.7,2486.5,0.11108296]
[1724838272569,29.12478109,2486.8,2486.2,4.10253543]
[1724838272785,19.78,2486.7,2486.6,0.11108296]
[1724838272973,19.78,2486.7,2486.5,4.02164]
[1724838273304,19.78,2486.7,2486.6,0.11108296]
[1724838274401,19.78,2486.7,2486.4,6.34183]
[1724838274777,19.78,2486.7,2486.5,0.11108296]
[1724838277293,19.78,2486.7,2486.6,4.02155]
[1724838277477,19.78,2486.7,2486.6,5.42111099]
[1724838277668,19.78,2486.7,2486.6,14.79670272]
[1724838277867,18.94032698,2486.7,2486.6,14.79670272]
[1724838278110,4.02059,2487.2,2486.7,4.02136]
[1724838278292,4.02059,2487.2,2486.8,5.42073813]
[1724838278604,4.02059,2487.2,2486.9,0.11075614]
[1724838279215,4.02059,2487.2,2486.8,4.0212]
[1724838279728,4.02059,2487.2,2486.9,0.11054204]
[1724838280011,4.04344077,2487.3,2486.9,0.11054204]
[1724838280304,4.02066,2487.2,2486.8,4.02122]
[1724838280469,4.02066,2487.2,2486.9,0.11054204]
[1724838281467,4.04344077,2487.3,2486.9,4.13152204]
[1724838281871,8.06386077,2487.3,2486.9,4.13152204]
[1724838282080,4.04344077,2487.3,2486.9,8.15250204]
[1724838282272,1.67934077,2487.3,2486.9,4.13152204]
[1724838284704,12.17346077,2487.5,2487.0,4.02088]
[1724838284869,4.02026,2487.4,2486.9,10.40326204]
[1724838285073,4.02018,2487.5,2487.0,0.08041387]
[1724838285385,4.02018,2487.5,2487.1,4.12695039]
[1724838287315,4.02018,2487.5,2487.1,0.10621039]
[1724838287316,7.98691077,2487.4,2487.1,0.10621039]
[1724838287607,4.02058,2487.2,2487.1,0.10621039]
[1724838287776,4.02058,2487.2,2486.7,6.27426]
[1724838287975,4.02079,2487.1,2486.6,4.02153]
[1724838288206,4.02079,2487.1,2486.6,4.02147]
[1724838288207,9.72097077,2487.1,2486.6,4.02147]
[1724838288569,5.70013077,2487.1,2486.6,8.04292]
[1724838288795,4.02079,2487.1,2486.6,8.04292]
[1724838288993,4.02079,2487.1,2486.7,0.08041948]
[1724838289915,9.72039077,2487.3,2486.8,0.09866748]
[1724838290109,9.72041077,2487.3,2486.8,4.02123]
[1724838290336,9.72041077,2487.3,2486.9,0.09555813]
[1724838290537,4.02059,2487.2,2486.9,0.09555813]
[1724838291497,4.02059,2487.2,2486.8,4.02121]
[1724838291723,4.02059,2487.2,2486.9,0.09555813]
[1724838292734,4.02059,2487.2,2486.7,4.10178948]
[1724838292909,4.02059,2487.2,2487.0,0.09217732]
[1724838293114,4.02059,2487.2,2486.7,4.10178948]
[1724838293307,4.02059,2487.2,2486.8,0.09217732]
[1724838293635,4.02059,2487.2,2486.7,4.10178948]
[1724838294098,4.02059,2487.2,2486.8,0.08903555]
[1724838294298,4.02059,2487.2,2486.7,4.10178948]
[1724838294499,4.02059,2487.2,2486.8,0.08903555]
[1724838294695,4.02059,2487.2,2486.7,4.10178948]
[1724838294896,4.02059,2487.2,2486.8,0.08903555]
[1724838295096,4.02059,2487.2,2486.7,4.10178948]
[1724838295396,4.02059,2487.2,2486.8,4.11024555]
[1724838296130,8.04125,2487.2,2486.8,4.11024555]
[1724838296342,5.69977077,2487.3,2486.8,4.11015555]
[1724838296638,9.72030077,2487.3,2486.8,4.11015555]
[1724838296845,6.24767579,2487.3,2486.8,0.08903555]
[1724838297145,4.02098,2487.0,2486.5,11.04323]
[1724838297321,4.02098,2487.0,2486.9,0.08598425]
[1724838297518,4.02098,2487.0,2486.6,3.0]
[1724838297823,4.02098,2487.0,2486.7,0.08598425]
[1724838298320,2.3103,2487.1,2486.7,4.10737425]
[1724838298701,6.33104,2487.1,2486.7,4.10737425]
[1724838300045,4.02074,2487.1,2486.7,4.10737425]
[1724838300244,1.67934077,2487.1,2486.7,0.08598425]
[1724838300454,4.02106,2487.0,2486.7,0.08598425]
[1724838300615,6.33137,2486.9,2486.7,0.08598425]
[1724838300812,6.33137,2486.9,2486.4,6.30542]
[1724838301004,6.33137,2486.9,2486.8,0.08044859]
[1724838301210,6.33137,2486.9,2486.5,4.0217]
[1724838301405,4.02081,2487.1,2486.8,0.08044859]
[1724838301634,11.04071244,2487.3,2486.8,4.02122]
[1724838301836,2.4697,2487.3,2486.9,0.0804932]
[1724838302107,1.67934077,2487.4,2486.9,4.1014332]
[1724838302108,5.69967077,2487.4,2486.9,4.1014332]
[1724838302505,5.69967077,2487.4,2487.0,4.0209]
[1724838302712,1.67934077,2487.4,2487.1,0.08038167]
[1724838303511,5.69962077,2487.4,2487.1,0.08038167]
[1724838304012,2.4697,2487.5,2487.1,4.10110167]
[1724838304324,6.48982,2487.5,2487.1,4.10110167]
[1724838304709,8.16916077,2487.5,2487.1,4.10110167]
[1724838305119,4.14904077,2487.5,2487.1,4.10110167]
[1724838306354,8.16917077,2487.5,2487.1,0.08038167]
[1724838306912,4.14904077,2487.5,2487.1,4.10110167]
[1724838309312,4.14904077,2487.5,2487.1,4.10104167]
[1724838310522,4.14904077,2487.5,2487.1,4.10099167]
[1724838310853,21.20072698,2487.8,2487.3,4.02034]
[1724838311062,16.83059244,2488.0,2487.7,2.4023]
[1724838311063,1.67934077,2488.0,2487.7,2.4023]
[1724838311224,1.67934077,2488.1,2487.8,4.01951]
[1724838311615,1.67934077,2488.1,2487.9,0.07173992]
[1724838311820,1.67934077,2488.0,2487.9,0.07173992]
[1724838312764,1.67934077,2488.0,2487.6,8.03969]
[1724838313056,1.67934077,2488.0,2487.9,0.07173992]
[1724838313564,1.67934077,2488.0,2487.6,4.10021024]
[1724838313866,1.67934077,2488.0,2487.9,0.07173992]
[1724838314050,1.67934077,2488.0,2487.6,4.10021024]
[1724838314557,1.67934077,2488.0,2487.9,0.07173992]
[1724838314731,1.67934077,2488.0,2487.5,6.39547022]
[1724838314929,1.67934077,2488.0,2487.0,8.06177776]
[1724838314930,2.4612,2487.5,2487.0,0.82858082]
[1724838315156,2.4612,2487.5,2486.8,1.24287123]
[1724838315157,1.67934077,2487.3,2486.8,4.02115]
[1724838315314,1.67934077,2487.3,2486.9,4.02104]
[1724838315518,5.69969077,2487.4,2486.9,4.02104]
[1724838315715,4.02035,2487.4,2486.9,4.02104]
[1724838316035,8.04076,2487.4,2486.9,4.02104]
[1724838316370,9.72010077,2487.4,2486.9,4.02104]
[1724838316724,4.02047,2487.3,2486.9,4.02104]
[1724838318161,4.02035,2487.4,2486.9,4.02104]
[1724838318458,4.02035,2487.4,2486.8,4.10163292]
[1724838318459,4.02044,2487.3,2486.8,4.10163292]
[1724838318778,4.02044,2487.3,2486.9,1.39938852]
[1724838318948,4.02044,2487.3,2486.8,4.10163292]
[1724838319153,4.02044,2487.3,2486.9,1.39938744]
[1724838319336,4.02044,2487.3,2486.8,4.10163292]
[1724838319536,4.02044,2487.3,2486.9,3.49846914]
[1724838319769,4.02044,2487.3,2486.9,0.08041294]
[1724838320079,4.02044,2487.3,2487.0,0.06569059]
[1724838320227,4.02035,2487.4,2487.0,0.06569059]
[1724838320662,5.69935077,2487.6,2487.1,2.2556]
[1724838320845,9.71942077,2487.6,2487.1,6.27633]
[1724838321061,11.65254729,2487.6,2487.2,0.06583516]
[1724838321671,4.02001,2487.6,2487.2,0.06583516]
[1724838321972,4.02001,2487.6,2487.2,4.08641516]
[1724838322267,4.02001,2487.6,2487.2,4.16681882]
[1724838322498,23.49091942,2487.7,2487.2,4.16681882]
[1724838322645,1.67934077,2487.6,2487.3,0.08040037]
[1724838322847,23.49091942,2487.7,2487.3,4.10073037]
[1724838323158,4.01914,2488.1,2487.6,4.01989]
[1724838323365,1.67934077,2488.0,2487.6,8.03975]
[1724838323556,4.01914,2488.1,2487.6,4.01986]
[1724838323557,5.69848077,2488.1,2487.6,4.01986]
[1724838323871,5.69848077,2488.1,2487.7,0.06583516]
[1724838324082,10.2537674,2488.2,2487.7,0.14622511]
[1724838324246,10.2537674,2488.2,2487.7,4.16598511]
[1724838324859,10.2537674,2488.2,2487.7,0.14622511]
[1724838324860,1.67934077,2488.1,2487.7,0.14622511]
[1724838325036,1.67934077,2488.0,2487.7,0.06583516]
[1724838325241,5.69863077,2488.0,2487.7,0.06583516]
[1724838325442,4.01956,2487.9,2487.7,0.06583516]
[1724838325650,4.01956,2487.9,2487.5,3.0]
[1724838325832,4.01956,2487.9,2487.8,0.06583516]
[1724838326048,4.01956,2487.9,2487.5,3.0]
[1724838326271,4.01929,2488.0,2487.8,0.06583516]
[1724838326473,4.01929,2488.0,2487.5,3.0]
[1724838326668,4.01929,2488.0,2487.9,0.06549048]
[1724838326874,4.01929,2488.0,2487.5,7.02008]
[1724838327095,4.01929,2488.0,2487.9,0.06549048]
[1724838327301,4.01929,2488.0,2487.5,7.02008]
[1724838327800,4.01951,2487.9,2487.6,0.06549048]
[1724838328004,8.03873,2488.0,2487.6,0.06549048]
[1724838328904,8.03866,2488.0,2487.6,0.06549048]
[1724838330033,4.01929,2488.0,2487.6,0.06549048]
[1724838330506,8.03869,2488.0,2487.6,0.06549048]
[1724838331199,8.03871,2488.0,2487.6,0.06549048]
[1724838331877,7.98536665,2488.0,2487.6,0.06549048]
[1724838332079,3.96594665,2488.0,2487.6,0.06549048]
[1724838332406,7.98533665,2488.0,2487.6,0.06549048]
[1724838333211,3.96594665,2488.0,2487.6,0.06549048]
[1724838336369,7.98534665,2488.0,2487.6,0.06549048]
[1724838336569,3.96594665,2488.0,2487.6,0.06549048]
[1724838337618,7.98531665,2488.0,2487.6,0.06549048]
[1724838337913,2.4986,2487.9,2487.6,0.06549048]
[1724838338212,8.03954,2487.7,2487.2,2.3436]
[1724838338410,4.01963,2487.8,2487.3,0.08040236]
[1724838338716,4.01959,2487.9,2487.4,4.02017]
[1724838339418,4.01959,2487.9,2487.4,4.10056767]
[1724838340707,4.01959,2487.9,2487.4,4.02017]
[1724838340907,4.01959,2487.9,2487.5,4.02007]
[1724838342826,8.56956244,2488.2,2487.7,4.0197]
[1724838343401,4.01913,2488.1,2487.7,4.0197]
[1724838346047,18.94032698,2488.4,2488.0,4.01918]
[1724838346354,5.69744405,2488.5,2488.0,2.2754]
[1724838346514,5.69744405,2488.5,2488.0,2.35577776]
[1724838346515,1.67887405,2488.4,2488.0,2.35577776]
[1724838346719,1.67887405,2488.3,2488.1,0.06496789]
[1724838346934,1.67887405,2488.2,2488.1,0.06496789]
[1724838347133,5.69783405,2488.2,2487.8,5.2754]
[1724838347333,5.69783405,2488.2,2487.9,0.06496789]
[1724838347334,1.67887405,2488.1,2487.9,0.06496789]
[1724838347537,1.67887405,2488.1,2487.7,4.01976]
[1724838347744,5.69783405,2488.2,2487.8,3.06496789]
[1724838348412,5.69808405,2488.1,2487.8,0.06496789]
[1724838348864,5.69808405,2488.1,2487.6,5.2754]
[1724838349048,1.67887405,2488.1,2487.9,0.06496789]
[1724838349234,1.67887405,2488.1,2487.6,9.29532]
[1724838349637,5.69805405,2488.1,2487.7,0.06496789]
[1724838349847,1.67887405,2488.1,2487.7,0.06496789]
[1724838350647,5.69810405,2488.1,2487.7,0.06496789]
[1724838350965,1.67887405,2487.9,2487.7,0.06496789]
[1724838351177,1.67887405,2487.8,2487.7,0.06496789]
[1724838351466,4.01931,2488.0,2487.7,0.06496789]
[1724838351634,1.67887405,2488.1,2487.7,2.4748]
[1724838351958,5.69794405,2488.2,2487.8,0.06261333]
[1724838352161,1.67887405,2488.1,2487.7,2.55518557]
[1724838352327,1.67887405,2488.1,2487.8,0.06261333]
[1724838352519,4.01866,2488.4,2488.0,2.4016]
[1724838352724,1.67887405,2488.3,2488.0,2.48197748]
[1724838353038,1.67887405,2488.3,2488.1,0.06261333]
[1724838354961,5.69769405,2488.3,2488.1,0.06261333]
[1724838355627,1.67887405,2488.2,2488.1,0.06261333]
[1724838356767,4.01866,2488.4,2488.1,0.06261333]
[1724838357276,5.69753405,2488.4,2488.1,0.06261333]
[1724838359130,4.01843,2488.6,2488.1,0.06261333]
[1724838359131,6.93899244,2488.7,2488.1,0.06261333]
[1724838359331,1.67887405,2488.5,2488.1,0.14298343]
[1724838359576,1.67887405,2488.4,2488.1,0.14298343]
[1724838359749,1.67887405,2488.4,2488.1,0.06261333]
[1724838360873,1.67887405,2488.2,2488.1,0.06261333]
[1724838361457,5.69775405,2488.3,2488.1,0.06261333]
[1724838363466,1.67887405,2488.2,2488.1,0.06261333]
[1724838363671,5.69783405,2488.2,2488.1,0.06261333]
[1724838363886,4.01919,2488.1,2487.7,5.3445]
[1724838364086,1.67887405,2488.1,2487.8,0.08038293]
[1724838364265,5.69800405,2488.1,2487.8,0.08038293]
[1724838364463,4.01913,2488.1,2487.8,0.08038293]
[1724838364651,5.69783405,2488.2,2487.8,0.08038293]
[1724838364996,9.71688405,2488.2,2487.9,0.06197973]
[1724838365795,4.01916,2488.1,2487.9,0.06197973]
[1724838365950,5.69783405,2488.2,2487.9,0.06197973]
[1724838365951,4.01896,2488.2,2487.9,0.06197973]
[1724838366872,8.03804,2488.2,2487.9,0.06197973]
[1724838367066,4.01896,2488.2,2487.9,0.06197973]
[1724838367259,8.03806,2488.2,2487.9,0.06197973]
[1724838367462,8.03802,2488.2,2487.9,0.06197973]
[1724838369290,4.01896,2488.2,2487.9,0.06197973]
[1724838371260,1.67887405,2488.3,2487.9,4.08140973]
[1724838371261,4.01885,2488.3,2487.9,4.08140973]
[1724838371476,4.01885,2488.3,2488.0,2.3783]
[1724838371784,4.01885,2488.3,2488.0,2.44026863]
[1724838373804,4.01885,2488.3,2488.0,0.06196863]
[1724838373977,4.01885,2488.3,2487.8,6.45009]
[1724838374176,8.03778,2488.3,2487.9,0.14234668]
[1724838374373,4.01907,2488.2,2487.9,0.06196863]
[1724838374602,5.69794405,2488.2,2487.9,0.06196863]
[1724838375377,4.01929,2488.0,2487.9,0.06196863]
[1724838375577,5.69816405,2488.0,2487.7,3.0]
[1724838375777,5.69816405,2488.0,2487.8,0.06196863]
[1724838375981,5.69816405,2488.0,2487.6,3.0]
[1724838375982,4.01929,2488.0,2487.6,3.0]
[1724838376178,4.01929,2488.0,2487.7,0.06196863]
[1724838376812,5.69802405,2488.1,2487.7,0.06196863]
[1724838376993,9.71725405,2488.1,2487.7,0.06196863]
[1724838377191,5.69802405,2488.1,2487.7,0.06196863]
[1724838377590,4.01931,2488.0,2487.7,0.06196863]
[1724838379077,4.01946,2487.9,2487.7,0.06196863]
[1724838379309,4.01961,2487.8,2487.7,0.06196863]
[1724838379621,2.4371,2488.0,2487.8,0.06200198]
[1724838379622,4.01946,2487.9,2487.8,0.06200198]
[1724838379823,4.01946,2487.9,2487.5,2.46239233]
[1724838380017,4.01946,2487.9,2487.8,0.06200198]
[1724838380184,4.01946,2487.9,2487.5,2.46239233]
[1724838380383,4.01946,2487.9,2487.6,0.06200198]
[1724838382990,4.01962,2487.8,2487.6,0.06200198]
[1724838383491,4.01947,2487.9,2487.6,0.06200198]
[1724838390504,6.45646,2488.0,2487.6,0.06200198]
[1724838390505,8.03876,2488.0,2487.6,0.06200198]
[1724838391947,4.01936,2488.0,2487.6,0.06200198]
[1724838392120,8.03876,2488.0,2487.6,0.06200198]
[1724838393460,6.42361,2488.2,2487.6,0.06200198]
[1724838393754,6.42361,2488.2,2487.7,2.4726]
[1724838393755,5.69795405,2488.2,2487.7,2.4726]
[1724838394257,9.71703405,2488.2,2487.8,0.06062718]
[1724838394417,5.69795405,2488.2,2487.8,0.06062718]
[1724838394756,5.69793405,2488.2,2487.7,6.49228]
[1724838394957,9.71703405,2488.2,2487.9,0.06061606]
[1724838395255,5.69793405,2488.2,2488.0,0.06061606]
[1724838395632,5.69793405,2488.2,2487.7,6.49228]
[1724838395951,5.69793405,2488.2,2488.1,0.06032708]
[1724838396159,5.69793405,2488.2,2487.7,6.49228]
[1724838396312,5.69793405,2488.2,2488.1,0.06032708]
[1724838396519,6.89991246,2488.2,2487.7,6.49228]
[1724838396830,5.69793405,2488.2,2487.7,6.49228]
[1724838397035,5.69793405,2488.2,2487.8,0.06032708]
[1724838397529,5.69793405,2488.2,2487.7,6.49228]
[1724838397751,5.69793405,2488.2,2487.9,0.06032708]
[1724838398065,5.69793405,2488.2,2488.0,0.06032708]
[1724838398551,5.69793405,2488.2,2487.7,6.57266678]
[1724838398753,5.69793405,2488.2,2488.1,0.0603382]
[1724838398956,6.89991246,2488.2,2487.7,6.57266678]
[1724838399157,5.69793405,2488.2,2488.1,0.0603382]
[1724838399319,5.69793405,2488.2,2487.7,6.49228]
[1724838399640,5.69793405,2488.2,2487.8,1.39889353]
[1724838399826,5.69793405,2488.2,2487.8,0.0603382]
[1724838399827,1.67887405,2488.2,2487.8,0.0603382]
[1724838400026,1.67887405,2488.2,2487.9,4.01938]
[1724838400434,1.67887405,2488.2,2488.0,0.0603382]
[1724838401468,10.83880244,2488.6,2488.1,6.47803]
[1724838401673,1.67887405,2488.5,2488.1,6.47803]
[1724838402078,1.67887405,2488.5,2488.2,0.0603382]
[1724838402279,1.67887405,2488.4,2488.2,0.0603382]
[1724838402786,1.67887405,2488.3,2488.2,0.0603382]
[1724838403070,4.01899,2488.2,2487.8,4.01948]
[1724838403273,1.67887405,2488.1,2487.8,4.01948]
[1724838404755,1.67887405,2488.1,2487.8,8.11940218]
[1724838404966,1.67887405,2488.1,2487.8,4.09986218]
[1724838406272,5.69767405,2488.3,2487.8,4.09986218]
[1724838406580,5.69767405,2488.3,2488.0,2.3552]
[1724838408682,1.67887405,2488.3,2488.0,2.3552]
[1724838409644,1.67887405,2488.3,2488.0,6.37448]
[1724838409844,1.67887405,2488.3,2488.1,0.06001593]
[1724838410552,1.67887405,2488.2,2488.1,0.06001593]
[1724838411143,1.67887405,2488.2,2487.8,6.45281]
[1724838411379,1.67887405,2488.2,2488.1,0.06001593]
[1724838411882,1.67887405,2488.2,2487.8,6.53319206]
[1724838412082,1.67887405,2488.2,2488.1,0.06001593]
[1724838412288,1.67887405,2488.2,2487.8,6.53319206]
[1724838412444,1.67887405,2488.2,2488.1,0.06001593]
[1724838412643,1.67887405,2488.2,2487.9,4.0194]
[1724838412858,1.67887405,2488.2,2488.1,0.06001593]
[1724838413371,1.67887405,2488.2,2487.8,10.47233]
[1724838413682,1.67887405,2488.2,2487.9,0.06001593]
[1724838414180,5.69785405,2488.2,2487.9,0.06001593]
[1724838414375,1.67887405,2488.2,2487.9,0.06001593]
[1724838415248,1.67887405,2488.2,2487.9,4.07945593]
[1724838415683,4.01882,2488.3,2487.9,4.07945593]
[1724838416499,2.4091,2488.5,2488.1,4.01911]
[1724838416794,1.67887405,2488.4,2488.2,0.06012703]
[1724838417094,6.73148719,2488.4,2488.2,0.06012703]
[1724838417390,6.73148719,2488.4,2487.9,4.0194]
[1724838417598,1.67887405,2488.2,2487.9,4.0194]
[1724838417757,1.67887405,2488.2,2488.0,0.06012703]
[1724838419488,4.01881,2488.3,2488.0,0.06012703]
[1724838419897,5.69751405,2488.4,2488.0,0.06012703]
[1724838420409,7.3650907,2488.4,2488.0,0.06012703]
[1724838420870,4.01883,2488.3,2488.0,0.06012703]
[1724838421191,7.3650907,2488.4,2488.0,0.06012703]
[1724838421399,5.69751405,2488.4,2488.0,0.06012703]
[1724838422862,4.01888,2488.3,2488.0,0.06012703]
[1724838423060,4.01897,2488.2,2488.0,0.06012703]
[1724838423286,10.46166,2488.1,2488.0,0.06012703]